bitfinex/quotes_ETHUSD_20250914
["timestamp","ask_amount","ask_price","bid_price","bid_amount"]
[1757825699539,15.62429243,4661.3,4661.2,0.001]
[1757825699837,23.41535785,4661.3,4661.2,0.001]
[1757825700408,20.63488689,4661.3,4661.2,0.001]
[1757825700736,20.63559178,4661.3,4661.2,0.001]
[1757825700925,19.69909178,4661.3,4661.2,0.001]
[1757825701438,19.38242636,4661.3,4661.2,0.001]
[1757825703206,20.66942636,4661.3,4661.2,0.001]
[1757825703821,21.15152636,4661.3,4661.2,0.001]
[1757825704442,21.15052636,4661.3,4661.2,0.001]
[1757825704648,21.92159178,4661.3,4661.2,0.001]
[1757825706843,2.14555441,4660.8,4660.7,0.001]
[1757825707008,12.42857923,4660.8,4660.7,0.001]
[1757825707211,14.88710473,4660.8,4660.7,0.001]
[1757825707412,14.11525002,4660.8,4660.7,0.001]
[1757825707624,16.37125002,4660.8,4660.7,0.001]
[1757825707835,14.11525002,4660.8,4660.7,0.001]
[1757825708745,14.20112075,4660.8,4660.7,0.001]
[1757825711547,14.20096885,4660.8,4660.7,0.001]
[1757825713130,15.48796885,4660.8,4660.7,0.001]
[1757825714314,16.25982356,4660.8,4660.7,0.001]
[1757825714942,2.14615302,4659.5,4659.4,0.4876]
[1757825715142,10.35515302,4659.5,4659.4,0.4876]
[1757825715340,10.67663243,4659.5,4659.4,1.13]
[1757825715848,5.45607941,4659.5,4659.4,1.13]
[1757825716153,11.16423243,4659.5,4659.4,1.13]
[1757825716745,9.01807941,4659.5,4659.4,1.13]
[1757825716945,2.45607941,4659.5,4659.4,1.13]
[1757825717148,7.84375302,4659.5,4659.4,1.13]
[1757825717352,8.16523243,4659.5,4659.4,1.13]
[1757825720461,6.01907941,4659.5,4659.4,1.13]
[1757825720760,8.16523243,4659.5,4659.4,1.13]
[1757825721393,8.16523243,4659.5,4659.4,0.7952]
[1757825721749,7.67763243,4659.5,4659.4,0.7952]
[1757825723491,4.11463243,4659.5,4659.4,0.7952]
[1757825723792,7.35615302,4659.5,4659.4,0.7952]
[1757825723999,1.76745984,4659.5,4659.4,0.7952]
[1757825724282,5.21,4659.5,4659.4,1.2431]
[1757825724971,5.21,4659.5,4659.4,1.13]
[1757825725973,7.35615302,4659.5,4659.4,1.13]
[1757825726173,7.47646054,4659.5,4659.4,1.13]
[1757825727766,7.47646054,4659.5,4659.4,0.7952]
[1757825729185,2.14619908,4659.4,4659.3,0.001]
[1757825729483,2.7155066,4659.4,4659.3,0.001]
[1757825729798,3.0040066,4659.4,4659.3,0.001]
[1757825729981,3.08988728,4659.4,4659.3,0.001]
[1757825731277,3.76341749,4659.4,4659.3,0.001]
[1757825731655,2.25346835,4659.3,4658.8,0.032]
[1757825731991,3.562,4659.2,4658.9,0.4638]
[1757825732176,3.562,4659.2,4659.1,0.3013]
[1757825732689,3.562,4659.2,4659.1,0.7651]
[1757825733185,3.562,4659.2,4659.1,0.3013]
[1757825733490,3.68230752,4659.2,4659.1,0.3013]
[1757825733867,2.55308483,4659.4,4659.1,0.3013]
[1757825734052,3.562,4659.3,4659.2,0.4638]
[1757825734689,3.562,4659.3,4659.2,0.7651]
[1757825735578,3.88309959,4659.3,4659.2,0.7651]
[1757825735780,3.88319344,4659.3,4659.2,0.7651]
[1757825737035,0.1072,4659.2,4658.8,0.51726475]
[1757825737321,3.562,4659.1,4658.9,0.4638]
[1757825737520,3.562,4659.1,4659.0,0.3013]
[1757825737702,3.562,4659.1,4659.0,0.7651]
[1757825738822,0.1072,4659.0,4658.8,0.032]
[1757825739014,3.562,4658.9,4658.8,0.824]
[1757825739202,3.562,4658.9,4658.8,1.1253]
[1757825739402,3.562,4658.9,4658.8,1.5891]
[1757825741232,3.562,4658.9,4658.8,1.1263]
[1757825743571,3.562,4658.9,4658.8,0.825]
[1757825744951,4.011,4658.9,4658.8,0.825]
[1757825745754,3.562,4658.9,4658.8,0.825]
[1757825750361,5.209,4658.9,4658.8,0.825]
[1757825750564,5.32955684,4658.9,4658.8,0.825]
[1757825751267,5.32955684,4658.9,4658.8,1.1297]
[1757825753977,5.32955684,4658.9,4658.8,0.825]
[1757825754779,6.08815684,4658.9,4658.8,0.825]
[1757825755285,6.08815684,4658.9,4658.8,0.033]
[1757825755893,5.32955684,4658.9,4658.8,0.033]
[1757825758185,5.63735684,4658.9,4658.8,0.033]
[1757825758388,6.08815684,4658.9,4658.8,0.033]
[1757825758691,5.32955684,4658.9,4658.8,0.033]
[1757825758884,5.33155684,4658.9,4658.8,0.033]
[1757825759493,6.09015684,4658.9,4658.8,0.033]
[1757825760157,6.57555684,4658.9,4658.8,0.033]
[1757825760578,6.09015684,4658.9,4658.8,0.033]
[1757825761488,6.09015684,4658.9,4658.8,0.825]
[1757825762588,8.23658625,4658.9,4658.8,0.825]
[1757825763095,8.72198625,4658.9,4658.8,0.825]
[1757825764095,8.23658625,4658.9,4658.8,0.825]
[1757825767382,8.92306225,4658.9,4658.8,0.825]
[1757825767820,8.43766225,4658.9,4658.8,0.825]
[1757825768422,8.23658625,4658.9,4658.8,0.825]
[1757825768719,8.43764112,4658.9,4658.8,0.825]
[1757825769097,8.23658625,4658.9,4658.8,0.825]
[1757825770300,8.43761688,4658.9,4658.8,0.825]
[1757825770819,8.92301688,4658.9,4658.8,0.825]
[1757825771019,8.92301745,4658.9,4658.8,0.825]
[1757825771224,8.72198625,4658.9,4658.8,0.033]
[1757825771722,8.72198625,4658.9,4658.8,0.825]
[1757825771921,8.23658625,4658.9,4658.8,0.825]
[1757825772802,1.76955684,4658.9,4658.8,0.825]
[1757825772999,5.211,4658.9,4658.8,1.6052]
[1757825773390,5.33155684,4658.9,4658.8,1.6052]
[1757825774827,5.33160496,4658.9,4658.8,1.6052]
[1757825775022,1.76960496,4658.9,4658.8,1.6052]
[1757825775225,5.211,4658.9,4658.8,1.6052]
[1757825779134,0.002,4658.9,4658.8,1.7992]
[1757825779338,0.002,4658.9,4658.8,2.134]
[1757825779339,3.563,4658.9,4658.8,2.134]
[1757825779644,3.563,4658.9,4658.8,1.94]
[1757825780131,3.563,4658.9,4658.8,4.10794023]
[1757825780943,3.563,4658.9,4658.8,1.96146475]
[1757825782027,3.563,4658.9,4658.8,1.94]
[1757825782757,3.563,4658.9,4658.8,1.96146475]
[1757825782938,3.563,4658.9,4658.8,4.10794023]
[1757825784522,3.563,4658.9,4658.8,3.77314023]
[1757825785348,3.563,4658.9,4658.8,1.62666475]
[1757825785765,3.563,4658.9,4658.8,1.82719996]
[1757825786062,3.563,4658.9,4658.8,1.82720064]
[1757825786626,3.563,4658.9,4658.8,3.97367612]
[1757825786935,3.563,4658.9,4658.8,4.40452373]
[1757825787452,3.563,4658.9,4658.8,1.82720064]
[1757825787816,0.002,4658.9,4658.8,1.82720064]
[1757825788016,3.563,4658.9,4658.8,1.82720064]
[1757825789554,3.563,4658.9,4658.8,1.32203589]
[1757825791338,3.563,4658.9,4658.8,1.02553589]
[1757825791533,4.0045,4658.9,4658.8,1.02553589]
[1757825791735,4.3326,4658.9,4658.8,1.02553589]
[1757825791939,4.7741,4658.9,4658.8,1.02553589]
[1757825793666,4.7741,4658.9,4658.8,0.23353589]
[1757825793858,4.7741,4658.9,4658.8,1.02553589]
[1757825794556,4.7741,4658.9,4658.8,1.02548503]
[1757825795338,7.60896242,4658.9,4658.8,1.02548503]
[1757825797488,7.60896242,4658.9,4658.8,0.033]
[1757825797489,7.93031939,4658.9,4658.8,0.033]
[1757825797657,9.03732404,4658.9,4658.8,0.033]
[1757825798470,8.83646954,4658.9,4658.8,0.033]
[1757825798677,8.37368602,4658.9,4658.8,0.033]
[1757825799073,8.25316987,4658.9,4658.8,0.033]
[1757825799580,8.37365642,4658.9,4658.8,0.033]
[1757825799908,11.71595339,4658.9,4658.8,0.033]
[1757825800687,12.03725985,4658.9,4658.8,0.033]
[1757825800862,11.71595339,4658.9,4658.8,0.033]
[1757825801062,12.03725985,4658.9,4658.8,0.033]
[1757825801261,11.83644331,4658.9,4658.8,0.033]
[1757825801662,12.03726458,4658.9,4658.8,0.033]
[1757825803593,14.82182286,4658.9,4658.8,0.033]
[1757825803800,14.82182286,4658.9,4658.4,0.001]
[1757825803801,4.93117199,4658.5,4658.4,0.001]
[1757825804004,8.49217199,4658.5,4658.4,0.001]
[1757825804197,10.02458318,4658.5,4658.4,0.001]
[1757825804391,10.4873667,4658.5,4658.4,0.001]
[1757825804594,11.13166131,4658.5,4658.4,0.001]
[1757825804786,11.82009432,4658.5,4658.4,0.001]
[1757825806281,11.3573108,4658.5,4658.4,0.001]
[1757825810014,8.57275252,4658.5,4658.4,0.001]
[1757825813141,4.10605252,4658.5,4658.4,0.001]
[1757825813304,4.20529461,4658.5,4658.4,0.001]
[1757825814335,6.35190832,4658.5,4658.4,0.001]
[1757825814531,6.47239824,4658.5,4658.4,0.001]
[1757825816829,6.92409824,4658.5,4658.4,0.001]
[1757825820246,7.12435009,4658.5,4658.4,0.001]
[1757825820649,3.11165009,4658.5,4658.4,0.001]
[1757825820847,6.35190832,4658.5,4658.4,0.001]
[1757825821043,6.67265009,4658.5,4658.4,0.001]
[1757825821246,6.67265009,4658.5,4658.4,0.7782]
[1757825821554,9.67265009,4658.5,4658.4,0.001]
[1757825821729,6.56341753,4658.5,4658.4,0.001]
[1757825821928,10.12441753,4658.5,4658.4,0.001]
[1757825822129,10.41671753,4658.5,4658.4,0.001]
[1757825822558,10.87551753,4658.5,4658.4,0.001]
[1757825823257,10.41671753,4658.5,4658.4,0.001]
[1757825823857,6.11171753,4658.5,4658.4,0.001]
[1757825824063,9.67271753,4658.5,4658.4,0.001]
[1757825825255,10.13496138,4658.5,4658.4,0.001]
[1757825825439,10.13515489,4658.5,4658.4,0.001]
[1757825826135,6.57415489,4658.5,4658.4,0.001]
[1757825826341,6.11191104,4658.5,4658.4,0.001]
[1757825826541,9.67291104,4658.5,4658.4,0.001]
[1757825826940,9.67291104,4658.5,4658.4,1.5702]
[1757825826941,1.42754118,4658.5,4658.4,1.5702]
[1757825827139,4.20529461,4658.5,4658.4,1.5702]
[1757825827661,4.32567063,4658.5,4658.4,1.5702]
[1757825827857,4.52629733,4658.5,4658.4,1.5702]
[1757825828059,4.20529461,4658.5,4658.4,1.5702]
[1757825828246,4.20529461,4658.5,4658.4,1.7608]
[1757825828453,3.561,4658.5,4658.4,1.905]
[1757825828647,0.1072,4658.6,4658.5,0.792]
[1757825828850,3.6682,4658.6,4658.5,1.904]
[1757825830433,0.1072,4658.6,4658.5,1.904]
[1757825830633,3.561,4658.6,4658.5,4.05061371]
[1757825830846,3.561,4658.6,4658.5,4.67269545]
[1757825832440,0.002,4658.8,4658.5,2.52608174]
[1757825832765,3.563,4658.8,4658.7,2.93852156]
[1757825832970,3.563,4658.8,4658.7,4.05052156]
[1757825835683,3.563,4658.8,4658.7,1.904]
[1757825836278,3.563,4658.8,4658.7,1.5692]
[1757825836449,3.563,4658.8,4658.7,1.99580017]
[1757825839673,3.8757,4658.8,4658.7,0.792]
[1757825839971,4.8321,4658.8,4658.7,0.792]
[1757825840486,4.8321,4658.8,4658.4,0.001]
[1757825840641,0.1072,4658.6,4658.4,0.001]
[1757825840975,5.70661371,4658.5,4658.4,0.001]
[1757825841200,6.97571371,4658.5,4658.4,0.001]
[1757825841340,7.45481371,4658.5,4658.4,0.001]
[1757825842039,6.97571371,4658.5,4658.4,0.001]
[1757825842246,7.98474881,4658.5,4658.4,0.001]
[1757825846194,0.08589046,4658.5,4658.4,0.001]
[1757825846417,0.1072,4658.6,4658.5,0.792]
[1757825846568,3.6672,4658.6,4658.5,1.60456613]
[1757825847184,3.6672,4658.6,4658.5,3.75117984]
[1757825847390,3.6672,4658.6,4658.5,1.60456613]
[1757825847805,0.002,4658.8,4658.7,2.93852156]
[1757825848073,3.562,4658.8,4658.7,2.95998677]
[1757825848297,3.562,4658.8,4658.7,4.08588677]
[1757825849090,3.562,4658.8,4658.7,4.06442156]
[1757825849370,3.562,4658.8,4658.7,4.73722546]
[1757825850195,0.002,4658.8,4658.7,4.73722546]
[1757825850403,3.562,4658.8,4658.7,4.73722546]
[1757825850580,0.002,4658.8,4658.7,4.73722546]
[1757825850763,0.002,4658.8,4658.7,4.84442546]
[1757825853590,0.002,4658.8,4658.7,7.50962546]
[1757825853832,0.002,4658.8,4658.7,7.84442546]
[1757825854724,0.002,4658.8,4658.7,7.93028199]
[1757825857326,0.002,4658.8,4658.7,7.59548199]
[1757825857522,0.002,4658.8,4658.7,7.11738199]
[1757825857822,0.002,4658.8,4658.7,7.59548199]
[1757825863614,0.002,4658.8,4658.7,7.93028199]
[1757825865725,0.002,4658.8,4658.7,7.59548199]
[1757825866026,0.002,4658.8,4658.7,7.93028199]
[1757825866630,0.002,4658.8,4658.7,7.59548199]
[1757825868936,0.002,4658.8,4658.7,7.93028199]
[1757825870340,0.002,4658.8,4658.7,7.59548199]
[1757825870640,0.002,4658.8,4658.7,7.93028199]
[1757825870933,0.002,4658.8,4658.7,7.59548199]
[1757825875041,0.002,4658.8,4658.7,7.93028199]
[1757825875420,0.002,4658.8,4658.7,7.59548199]
[1757825877139,0.002,4658.8,4658.7,7.93028199]
[1757825877442,0.002,4658.8,4658.7,7.59548199]
[1757825881046,0.002,4658.8,4658.7,6.80438199]
[1757825882212,0.002,4658.8,4658.7,7.09318199]
[1757825885018,0.002,4658.8,4658.7,7.54488199]
[1757825885240,0.002,4658.8,4658.7,7.87968199]
[1757825887516,1e-08,4658.9,4658.8,5.93847548]
[1757825887759,0.002,4659.2,4659.1,2.93833727]
[1757825887914,0.002,4659.2,4659.1,6.78613727]
[1757825888117,0.002,4659.2,4659.1,6.89333727]
[1757825888349,0.002,4659.2,4659.1,6.97917427]
[1757825889650,1.201,4659.2,4659.1,6.69037427]
[1757825889851,1.201,4659.2,4659.1,4.51440039]
[1757825890154,1.201,4659.2,4659.1,8.07240039]
[1757825892148,0.7258,4659.2,4659.1,8.07240039]
[1757825895455,1.201,4659.2,4659.1,8.07240039]
[1757825897864,0.7258,4659.2,4659.1,8.07240039]
[1757825898535,0.002,4659.2,4659.1,8.84680039]
[1757825899156,0.002,4659.2,4659.1,8.37970039]
[1757825899322,0.002,4659.2,4659.1,8.07240039]
[1757825900438,0.002,4659.2,4659.1,7.98656339]
[1757825907548,0.7562,4659.2,4659.1,7.98656339]
[1757825910879,1.2159,4659.2,4659.1,7.98656339]
[1757825912371,1.2159,4659.2,4659.1,9.60353727]
[1757825912577,1.2159,4659.2,4659.1,2.25353727]
[1757825912876,1.2159,4659.2,4659.1,3.04553727]
[1757825916451,1.2159,4659.2,4659.1,2.93833727]
[1757825917181,1.2159,4659.2,4659.1,0.792]
[1757825918065,1.33789,4659.2,4658.8,0.001]
[1757825919195,0.1072,4659.0,4658.8,0.001]
[1757825919555,1.2139,4658.9,4658.8,0.001]
[1757825938691,1.2159,4658.9,4658.8,0.001]
[1757825940411,0.7562,4658.9,4658.8,0.001]
[1757825941687,1.2262,4658.9,4658.8,0.001]
[1757825942321,1.94236857,4658.9,4658.8,0.001]
[1757825944309,1.2262,4658.9,4658.8,0.001]
[1757825944892,0.7562,4658.9,4658.8,0.001]
[1757825946888,1.2262,4658.9,4658.8,0.001]
[1757825951409,0.7562,4658.9,4658.8,0.001]
[1757825952923,0.002,4658.9,4658.8,0.001]
[1757825955529,0.4586,4658.9,4658.8,0.001]
[1757825957343,0.7615,4658.9,4658.8,0.001]
[1757825960711,1.2593,4658.9,4658.8,0.001]
[1757825961838,0.7615,4658.9,4658.8,0.001]
[1757825962729,1.40557744,4658.9,4658.8,0.001]
[1757825963405,2.63719907,4658.9,4658.8,0.001]
[1757825963925,2.13939907,4658.9,4658.8,0.001]
[1757825964128,1.40557744,4658.9,4658.8,0.001]
[1757825965213,0.94897744,4658.9,4658.8,0.001]
[1757825965410,1.39017744,4658.9,4658.8,0.001]
[1757825966545,1.88797744,4658.9,4658.8,0.001]
[1757825966747,4.03440685,4658.9,4658.8,0.001]
[1757825966949,5.11136188,4658.9,4658.8,0.001]
[1757825967261,4.99071899,4658.9,4658.8,0.001]
[1757825967752,5.11136188,4658.9,4658.8,0.001]
[1757825968158,5.31243356,4658.9,4658.8,0.001]
[1757825968460,8.87043356,4658.9,4658.8,0.001]
[1757825978348,11.87043356,4658.9,4658.8,0.001]
[1757825988084,11.87014252,4658.9,4658.8,0.001]
[1757825991766,11.37234252,4658.9,4658.8,0.001]
[1757825993448,11.83479585,4658.9,4658.8,0.001]
[1757825994237,7.53269585,4658.9,4658.8,0.7929]
[1757825994436,10.62824252,4658.9,4658.8,0.7929]
[1757825994651,11.09069585,4658.9,4658.8,0.3147]
[1757825995063,11.09069585,4658.9,4658.8,0.001]
[1757825996739,6.57638371,4658.9,4658.8,0.3147]
[1757825996942,9.67193038,4658.9,4658.8,0.7929]
[1757825997135,6.11393038,4658.9,4658.8,1.5849]
[1757825997341,6.67193038,4658.9,4658.8,1.5849]
[1757825997567,6.67193038,4658.9,4658.8,1.9197]
[1757825997869,4.52550097,4658.9,4658.8,1.9197]
[1757825998073,6.35050685,4658.9,4658.8,1.9197]
[1757825998242,6.67193038,4658.9,4658.8,1.9197]
[1757825998941,4.52550097,4658.9,4658.8,1.9197]
[1757825999146,6.35050685,4658.9,4658.8,1.9197]
[1757825999348,6.67193038,4658.9,4658.8,1.9197]
[1757825999679,6.67193038,4658.9,4658.8,1.5849]
[1757826000480,0.96750097,4658.9,4658.8,1.5849]
[1757826000649,3.6672,4658.9,4658.8,2.11177]
[1757826000837,3.6672,4658.9,4658.8,1.9197]
[1757826001042,4.31128159,4658.9,4658.8,1.9197]
[1757826001243,4.43163344,4658.9,4658.8,1.9197]
[1757826001441,0.87363344,4658.9,4658.8,1.9197]
[1757826001670,4.20408159,4658.9,4658.8,1.9197]
[1757826001876,3.56,4658.9,4658.8,2.11391657]
[1757826002179,0.64602628,4658.9,4658.8,4.26039205]
[1757826002407,3.56,4658.9,4658.8,4.4608246]
[1757826002582,3.56,4658.9,4658.8,2.31434912]
[1757826003275,0.002,4658.9,4658.8,2.31434912]
[1757826003581,4.20400969,4658.9,4658.8,2.31434912]
[1757826004889,3.56,4658.9,4658.8,2.31434912]
[1757826005555,3.56,4658.9,4658.8,4.48228935]
[1757826005898,3.56,4658.9,4658.8,2.31434912]
[1757826007791,3.56,4658.9,4658.8,4.48228935]
[1757826007992,3.56,4658.9,4658.8,4.4608246]
[1757826008168,0.002,4658.9,4658.8,4.4608246]
[1757826009055,0.002,4658.9,4658.8,2.31434912]
[1757826010405,0.002,4658.9,4658.8,1.97954912]
[1757826011101,0.002,4658.9,4658.8,4.4608246]
[1757826011286,0.002,4658.9,4658.8,5.10473476]
[1757826011677,0.002,4658.9,4658.8,8.10473476]
[1757826012000,0.002,4659.2,4659.1,2.93833727]
[1757826012203,0.002,4659.2,4659.1,11.06751627]
[1757826012412,0.002,4659.2,4659.1,12.19421627]
[1757826012701,0.002,4659.2,4659.1,12.28005806]
[1757826014697,0.002,4659.2,4659.1,11.94525806]
[1757826014905,0.002,4659.2,4659.1,12.28005806]
[1757826015272,0.002,4659.2,4659.1,11.15325806]
[1757826015472,0.002,4659.2,4659.1,10.67505806]
[1757826015679,0.002,4659.2,4659.1,11.46705806]
[1757826016091,0.002,4659.2,4659.1,11.95395806]
[1757826017305,0.002,4659.2,4659.1,12.28875806]
[1757826017506,0.002,4659.2,4659.1,12.20291627]
[1757826019092,0.002,4659.2,4659.1,12.20391627]
[1757826019507,0.002,4659.2,4659.1,11.86911627]
[1757826021018,0.002,4659.2,4659.1,8.41531627]
[1757826021218,0.002,4659.2,4659.1,11.97531627]
[1757826023421,0.002,4659.2,4659.1,8.41531627]
[1757826023580,0.002,4659.2,4659.1,11.97531627]
[1757826024289,0.002,4659.2,4659.1,12.31011627]
[1757826024600,0.002,4659.2,4659.1,7.61471627]
[1757826024785,0.002,4659.2,4659.1,11.46181627]
[1757826025238,0.002,4659.2,4659.1,11.94871627]
[1757826030716,0.002,4659.2,4659.1,11.46181627]
[1757826031608,0.002,4659.2,4659.1,11.46206429]
[1757826032040,0.002,4659.2,4659.1,11.94896429]
[1757826032219,0.002,4659.2,4659.1,8.38796429]
[1757826032514,0.002,4659.2,4659.1,11.94896429]
[1757826035452,0.002,4659.2,4659.1,8.38796429]
[1757826035607,0.002,4659.2,4659.1,11.94796429]
[1757826036651,0.002,4659.2,4659.1,11.46106429]
[1757826036950,0.002,4659.2,4659.1,11.17396429]
[1757826037126,0.7377,4659.2,4659.1,11.17396429]
[1757826037750,0.002,4659.2,4659.1,11.46106429]
[1757826038111,0.002,4659.2,4659.1,11.94796429]
[1757826040832,0.002,4659.2,4659.1,11.46106429]
[1757826042536,0.7377,4659.2,4659.1,11.17396429]
[1757826043877,1.1881,4659.2,4659.1,10.38096429]
[1757826044203,1.1881,4659.2,4659.1,9.80421784]
[1757826046347,0.7377,4659.2,4659.1,9.80421784]
[1757826047650,0.002,4659.2,4659.1,10.61271784]
[1757826055582,0.002,4659.2,4659.1,9.80421784]
[1757826055885,0.002,4659.2,4659.1,10.09201784]
[1757826056054,0.002,4659.2,4659.1,11.22317054]
[1757826057789,0.002,4659.2,4659.1,11.67427054]
[1757826058688,0.002,4659.2,4659.1,11.37270453]
[1757826061908,0.002,4659.2,4659.1,10.92160453]
[1757826062067,0.2998,4659.2,4659.1,10.63380453]
[1757826062395,0.7703,4659.2,4659.1,10.63380453]
[1757826067199,0.002,4659.2,4659.1,10.92160453]
[1757826067400,0.002,4659.2,4659.1,11.37270453]
[1757826067590,0.002,4659.2,4659.1,11.70750453]
[1757826067899,0.002,4659.3,4659.2,5.9382912]
[1757826068217,0.002,4659.3,4659.2,8.86334303]
[1757826068512,0.002,4659.3,4659.2,9.15114303]
[1757826071722,0.002,4659.7,4659.6,5.93810696]
[1757826072013,0.002,4659.7,4659.6,9.49610696]
[1757826072215,0.002,4659.7,4659.6,10.34220696]
[1757826072419,0.4705,4660.5,4659.8,5.93801485]
[1757826072586,0.4705,4660.5,4659.8,9.49601485]
[1757826072778,0.4705,4660.5,4659.8,9.78381485]
[1757826072983,0.4705,4660.5,4659.8,10.23491485]
[1757826073183,0.5335,4660.8,4660.1,2.93787669]
[1757826073413,1.004,4660.8,4660.1,11.04466952]
[1757826073605,0.7703,4660.2,4660.1,11.15186952]
[1757826073801,0.002,4660.2,4660.1,11.15186952]
[1757826074183,0.002,4660.2,4660.1,11.89076952]
[1757826074681,0.002,4660.2,4660.1,41.89076952]
[1757826074998,0.002,4660.2,4660.1,41.99976494]
[1757826075526,0.7703,4660.2,4660.1,41.26086494]
[1757826075684,0.7703,4660.2,4660.1,7.59386952]
[1757826075685,1.2254,4660.2,4660.1,7.59386952]
[1757826075880,1.2254,4660.2,4660.1,11.15286952]
[1757826081835,0.7703,4660.2,4660.1,11.15286952]
[1757826082534,0.4725,4660.2,4660.1,11.15286952]
[1757826083047,0.7677,4660.2,4660.1,11.15286952]
[1757826084237,1.2228,4660.2,4660.1,9.60407669]
[1757826086562,1.2228,4660.2,4660.1,6.04507669]
[1757826086733,1.2228,4660.2,4660.1,9.60407669]
[1757826087550,0.002,4660.2,4660.1,9.60407669]
[1757826087751,0.002,4660.2,4660.1,9.89597669]
[1757826088052,0.002,4660.2,4660.1,11.60943847]
[1757826090054,0.002,4660.2,4660.1,11.11123847]
[1757826090359,0.002,4660.2,4660.1,10.81933847]
[1757826090721,0.3088,4660.2,4660.1,10.81933847]
[1757826090920,1.2452,4660.2,4660.1,10.81933847]
[1757826091128,1.2452,4660.2,4660.1,7.26033847]
[1757826091553,1.2452,4660.2,4660.1,10.81933847]
[1757826091860,1.2452,4660.2,4660.1,9.60407669]
[1757826092162,1.2452,4660.2,4660.1,6.04507669]
[1757826092374,1.2452,4660.2,4660.1,0.1072]
[1757826092572,1.2452,4660.2,4659.8,0.001]
[1757826092728,1.2452,4660.2,4659.9,2.14596684]
[1757826092940,0.9364,4660.1,4660.0,0.792]
[1757826093174,0.9364,4660.1,4660.0,5.93792274]
[1757826093483,1.2432,4660.1,4660.0,5.93792274]
[1757826094459,1.36772,4660.1,4659.8,0.793]
[1757826094659,1.36772,4660.1,4659.8,0.753]
[1757826094660,0.9364,4660.0,4659.8,0.753]
[1757826095064,1.2432,4659.9,4659.8,0.753]
[1757826096478,1.2432,4659.9,4659.8,2.89901485]
[1757826098776,0.7611,4659.9,4659.8,2.89901485]
[1757826104576,0.7611,4659.9,4659.8,2.90001485]
[1757826116184,0.4543,4659.9,4659.8,2.90001485]
[1757826116386,0.002,4660.2,4660.0,0.792]
[1757826116592,0.7268,4660.1,4660.0,2.93792274]
[1757826117991,0.7268,4660.1,4660.0,0.792]
[1757826118698,1.2014,4660.1,4660.0,0.792]
[1757826120291,1.32174,4660.1,4660.0,0.792]
[1757826121619,1.32374,4660.1,4660.0,0.792]
[1757826122002,1.32374,4660.1,4659.8,0.001]
[1757826122003,3.46962847,4660.1,4659.8,0.001]
[1757826122888,2.14596879,4659.9,4659.8,0.001]
[1757826123092,6.4414776,4659.9,4659.8,0.001]
[1757826123301,7.6428776,4659.9,4659.8,0.001]
[1757826124302,5.49690881,4659.9,4659.8,0.001]
[1757826124476,7.6428776,4659.9,4659.8,0.001]
[1757826127678,7.76327193,4659.9,4659.8,0.001]
[1757826128175,7.6428776,4659.9,4659.8,0.001]
[1757826130515,7.76321875,4659.9,4659.8,0.001]
[1757826130818,7.84908707,4659.9,4659.8,0.001]
[1757826133018,10.63286168,4659.9,4659.8,0.001]
[1757826133182,10.83332281,4659.9,4659.8,0.001]
[1757826135325,10.83323143,4659.9,4659.8,0.001]
[1757826136097,8.04945682,4659.9,4659.8,0.001]
[1757826136290,10.83323143,4659.9,4659.8,0.001]
[1757826136693,13.83323143,4659.9,4659.8,0.001]
[1757826137591,14.29475166,4659.9,4659.8,0.001]
[1757826140121,14.29654748,4659.9,4659.8,0.001]
[1757826141390,15.58354748,4659.9,4659.8,0.001]
[1757826145919,15.58344494,4659.9,4659.8,0.001]
[1757826146119,15.58444494,4659.9,4659.8,0.001]
[1757826147357,15.58413881,4659.9,4659.8,0.001]
[1757826151450,16.16223676,4659.9,4659.8,0.001]
[1757826152882,12.60423676,4659.9,4659.8,0.001]
[1757826153189,15.58513881,4659.9,4659.8,0.001]
[1757826153557,16.16323676,4659.9,4659.8,0.001]
[1757826156278,15.58513881,4659.9,4659.8,0.001]
[1757826157162,15.46510438,4659.9,4659.8,0.001]
[1757826157365,15.58532903,4659.9,4659.8,0.001]
[1757826158560,15.58312428,4659.9,4659.8,0.001]
[1757826159584,22.60312428,4659.9,4659.8,0.001]
[1757826162375,23.3738607,4659.9,4659.8,0.001]
[1757826164250,22.60312428,4659.9,4659.8,0.001]
[1757826166494,22.12852428,4659.9,4659.8,0.001]
[1757826167786,21.80823601,4659.9,4659.8,0.001]
[1757826168391,15.35801717,4659.9,4659.8,0.001]
[1757826168567,21.70079178,4659.9,4659.8,0.001]
[1757826168756,21.81113601,4659.9,4659.8,0.001]
[1757826169286,22.13275317,4659.9,4659.8,0.001]
[1757826169673,21.93174244,4659.9,4659.8,0.001]
[1757826170054,23.08722656,4659.9,4659.8,0.001]
[1757826170254,22.96662013,4659.9,4659.8,0.001]
[1757826170658,2.14619908,4659.4,4659.3,1e-08]
[1757826170881,6.13166415,4659.4,4659.3,1e-08]
[1757826171055,6.13166415,4659.4,4659.3,0.78640001]
[1757826171250,6.45343067,4659.4,4659.3,0.30160001]
[1757826171493,14.2697509,4659.4,4659.3,0.30160001]
[1757826171863,14.26976796,4659.4,4659.3,0.30160001]
[1757826172058,14.56796796,4659.4,4659.3,1e-08]
[1757826172290,15.04086796,4659.4,4659.3,1e-08]
[1757826173802,14.26976796,4659.4,4659.3,0.28820001]
[1757826177197,14.42241495,4659.4,4659.3,1.08870001]
[1757826177900,10.86341495,4659.4,4659.3,0.75390001]
[1757826178089,9.45030381,4659.4,4659.3,1.88070001]